fUST/lending_fUST_20250828
["ID","MTS","AMOUNT","RATE_DAILY","PERIOD"]
[381722279,1756319452975,-409.36984114,0.00022465,2]
[381722280,1756319452984,-480.0,0.00022465,2]
[381722281,1756319452994,-480.0,0.00022465,2]
[381722282,1756319453003,-480.0,0.00022465,2]
[381722283,1756319453013,-521.29,0.00022465,2]
[381722284,1756319453022,-480.0,0.00022465,2]
[381722285,1756319453032,-480.0,0.00022465,2]
[381722286,1756319453041,-494.4423398,0.00022465,2]
[381722287,1756319453050,-480.0,0.00022465,2]
[381722288,1756319453060,-480.0,0.00022465,2]
[381722289,1756319453069,-480.0,0.00022465,2]
[381722290,1756319453079,-480.0,0.00022465,2]
[381722291,1756319453088,-480.0,0.00022465,2]
[381722292,1756319453097,-480.0,0.00022465,2]
[381722293,1756319453106,-480.0,0.00022465,2]
[381722294,1756319453116,-480.0,0.00022465,2]
[381722295,1756319453125,-480.0,0.00022465,2]
[381722296,1756319453134,-480.0,0.00022465,2]
[381722297,1756319453144,-347.92218404,0.00022465,2]
[381722298,1756319453154,-480.0,0.00022465,2]
[381722299,1756319453164,-480.0,0.00022465,2]
[381722300,1756319453173,-480.0,0.00022465,2]
[381722301,1756319453182,-480.0,0.00022465,2]
[381722302,1756319453192,-480.0,0.00022465,2]
[381722303,1756319453202,-480.0,0.00022465,2]
[381722304,1756319453212,-480.0,0.00022465,2]
[381722305,1756319453222,-480.0,0.00022465,2]
[381722306,1756319453231,-480.0,0.00022465,2]
[381722307,1756319453241,-480.0,0.00022465,2]
[381722308,1756319453252,-404.42461787,0.00022465,2]
[381722309,1756319453261,-480.0,0.00022465,2]
[381722310,1756319453271,-480.0,0.00022465,2]
[381722311,1756319453281,-480.0,0.00022465,2]
[381722312,1756319453290,-480.0,0.00022465,2]
[381722313,1756319453299,-480.0,0.00022465,2]
[381722314,1756319453309,-480.0,0.00022465,2]
[381722315,1756319453318,-480.0,0.00022465,2]
[381722316,1756319453328,-480.0,0.00022465,2]
[381722317,1756319453338,-480.0,0.00022465,2]
[381722318,1756319453347,-480.0,0.00022465,2]
[381722319,1756319453357,-480.0,0.00022465,2]
[381722320,1756319453369,-480.0,0.00022465,2]
[381722321,1756319453378,-480.0,0.00022465,2]
[381722322,1756319453387,-480.0,0.00022465,2]
[381722323,1756319453397,-480.0,0.00022465,2]
[381722324,1756319453406,-480.0,0.00022465,2]
[381722325,1756319453418,-480.0,0.00022465,2]
[381722326,1756319453428,-480.0,0.00022465,2]
[381722327,1756319453438,-480.0,0.00022465,2]
[381722328,1756319453448,-480.0,0.00022465,2]
[381722329,1756319453457,-480.0,0.00022465,2]
[381722330,1756319453467,-480.0,0.00022465,2]
[381722331,1756319453476,-480.0,0.00022465,2]
[381722332,1756319453486,-480.0,0.00022465,2]
[381722333,1756319453496,-480.0,0.00022465,2]
[381722334,1756319453506,-480.0,0.00022465,2]
[381722335,1756319453515,-480.0,0.00022465,2]
[381722336,1756319453524,-480.0,0.00022465,2]
[381722337,1756319453534,-480.0,0.00022465,2]
[381722338,1756319453543,-480.0,0.00022465,2]
[381722339,1756319453552,-480.0,0.00022465,2]
[381722340,1756319453562,-480.0,0.00022465,2]
[381722341,1756319453571,-480.0,0.00022465,2]
[381722342,1756319453580,-480.0,0.00022465,2]
[381722343,1756319453590,-480.0,0.00022465,2]
[381722344,1756319453599,-480.0,0.00022465,2]
[381722345,1756319453608,-480.0,0.00022465,2]
[381722346,1756319453618,-696.82,0.00022465,2]
[381722347,1756319453627,-480.0,0.00022465,2]
[381722348,1756319453636,-480.0,0.00022465,2]
[381722349,1756319453646,-727.88,0.00022465,2]
[381722350,1756319453656,-480.0,0.00022465,2]
[381722351,1756319453665,-480.0,0.00022465,2]
[381722352,1756319453675,-480.0,0.00022465,2]
[381722353,1756319453690,-480.0,0.00022465,2]
[381722354,1756319453700,-480.0,0.00022465,2]
[381722355,1756319453709,-636.24,0.00022465,2]
[381722356,1756319453719,-480.0,0.00022465,2]
[381722357,1756319453728,-480.0,0.00022465,2]
[381722358,1756319453738,-546.63,0.00022465,2]
[381722359,1756319453747,-480.0,0.00022465,2]
[381722360,1756319453756,-616.12,0.00022465,2]
[381722361,1756319453766,-480.0,0.00022465,2]
[381722362,1756319453775,-480.0,0.00022465,2]
[381722363,1756319453784,-480.0,0.00022465,2]
[381722364,1756319453794,-480.0,0.00022465,2]
[381722365,1756319453804,-480.0,0.00022465,2]
[381722366,1756319453813,-480.0,0.00022465,2]
[381722367,1756319453822,-480.0,0.00022465,2]
[381722368,1756319453831,-926.69,0.00022465,2]
[381722369,1756319453840,-480.0,0.00022465,2]
[381722370,1756319453849,-480.0,0.00022465,2]
[381722371,1756319453859,-480.0,0.00022465,2]
[381722372,1756319453868,-480.0,0.00022465,2]
[381722373,1756319453878,-480.0,0.00022465,2]
[381722374,1756319453888,-480.0,0.00022465,2]
[381722375,1756319453898,-480.0,0.00022465,2]
[381722376,1756319453907,-480.0,0.00022465,2]
[381722377,1756319453917,-480.0,0.00022465,2]
[381722378,1756319453927,-480.0,0.00022465,2]
[381722379,1756319453936,-480.0,0.00022465,2]
[381722380,1756319453946,-480.0,0.00022465,2]
[381722381,1756319453956,-611.28681639,0.00022465,2]
[381722382,1756319453966,-480.0,0.00022465,2]
[381722383,1756319453975,-480.0,0.00022465,2]
[381722384,1756319453985,-480.0,0.00022465,2]
[381722385,1756319453994,-533.89,0.00022465,2]
[381722386,1756319454004,-480.0,0.00022465,2]
[381722387,1756319454014,-480.0,0.00022465,2]
[381722388,1756319454024,-480.0,0.00022465,2]
[381722389,1756319454033,-480.0,0.00022465,2]
[381722390,1756319454043,-480.0,0.00022465,2]
[381722391,1756319454054,-480.0,0.00022465,2]
[381722392,1756319454064,-480.0,0.00022465,2]
[381722393,1756319454074,-480.0,0.00022465,2]
[381722394,1756319454085,-480.0,0.00022465,2]
[381722395,1756319454096,-480.0,0.00022465,2]
[381722396,1756319454107,-480.0,0.00022465,2]
[381722397,1756319454118,-480.0,0.00022465,2]
[381722398,1756319454127,-480.0,0.00022465,2]
[381722399,1756319454138,-480.0,0.00022465,2]
[381722400,1756319454147,-480.0,0.00022465,2]
[381722401,1756319454158,-480.0,0.00022465,2]
[381722402,1756319454168,-480.0,0.00022465,2]
[381722403,1756319454178,-480.0,0.00022465,2]
[381722404,1756319454187,-480.0,0.00022465,2]
[381722405,1756319454197,-367.68774255,0.00022465,2]
[381722406,1756319454207,-363.19918655,0.00022465,2]
[381722407,1756319454973,-1405.55,0.00021917,2]
[381722408,1756319454983,-480.0,0.00021917,2]
[381722409,1756319454992,-480.0,0.00021917,2]
[381722410,1756319455003,-480.0,0.00021917,2]
[381722411,1756319455013,-480.0,0.00021917,2]
[381722412,1756319455024,-480.0,0.00021917,2]
[381722413,1756319455034,-480.0,0.00021917,2]
[381722414,1756319455044,-1405.55,0.00022191,2]
[381722415,1756319455054,-198.65,0.00022191,2]
[381722416,1756319455064,-480.0,0.00022191,2]
[381722417,1756319455074,-480.0,0.00022191,2]
[381722418,1756319455084,-222.62,0.00022191,2]
[381722419,1756319455094,-116.80081345,0.00022465,2]
[381722420,1756319455103,-430.07049116,0.00022465,2]
[381722421,1756319455113,-480.0,0.00022465,2]
[381722422,1756319455123,-480.0,0.00022465,2]
[381722423,1756319455132,-480.0,0.00022465,2]
[381722424,1756319455142,-937.43,0.00022465,2]
[381722425,1756319455152,-480.0,0.00022465,2]
[381722426,1756319455162,-480.0,0.00022465,2]
[381722427,1756319455172,-480.0,0.00022465,2]
[381722428,1756319455182,-480.0,0.00022465,2]
[381722429,1756319455191,-480.0,0.00022465,2]
[381722430,1756319455201,-480.0,0.00022465,2]
[381722431,1756319455211,-480.0,0.00022465,2]
[381722432,1756319455221,-480.0,0.00022465,2]
[381722433,1756319455231,-480.0,0.00022465,2]
[381722434,1756319455240,-480.0,0.00022465,2]
[381722435,1756319455251,-535.29,0.00022465,2]
[381722436,1756319455261,-480.0,0.00022465,2]
[381722437,1756319455270,-673.32,0.00022465,2]
[381722438,1756319455280,-480.0,0.00022465,2]
[381722439,1756319455289,-480.0,0.00022465,2]
[381722440,1756319455300,-480.0,0.00022465,2]
[381722441,1756319455309,-480.52,0.00022465,2]
[381722442,1756319455319,-480.0,0.00022465,2]
[381722443,1756319455328,-480.0,0.00022465,2]
[381722444,1756319455338,-480.0,0.00022465,2]
[381722445,1756319455348,-876.56,0.00022465,2]
[381722446,1756319455357,-505.98,0.00022465,2]
[381722447,1756319455367,-480.0,0.00022465,2]
[381722448,1756319455376,-480.0,0.00022465,2]
[381722449,1756319455385,-480.0,0.00022465,2]
[381722450,1756319455395,-480.0,0.00022465,2]
[381722451,1756319455405,-480.0,0.00022465,2]
[381722452,1756319455414,-480.0,0.00022465,2]
[381722453,1756319455424,-480.0,0.00022465,2]
[381722454,1756319455434,-480.0,0.00022465,2]
[381722455,1756319455444,-760.76,0.00022465,2]
[381722456,1756319455454,-480.0,0.00022465,2]
[381722457,1756319455463,-480.0,0.00022465,2]
[381722458,1756319455473,-480.0,0.00022465,2]
[381722459,1756319455483,-480.0,0.00022465,2]
[381722460,1756319455492,-1160.78,0.00022465,2]
[381722461,1756319455503,-480.0,0.00022465,2]
[381722462,1756319455513,-480.0,0.00022465,2]
[381722463,1756319455523,-480.0,0.00022465,2]
[381722464,1756319455532,-590.59,0.00022465,2]
[381722465,1756319455542,-863.62,0.00022465,2]
[381722466,1756319455551,-480.0,0.00022465,2]
[381722467,1756319455561,-480.0,0.00022465,2]
[381722468,1756319455570,-480.0,0.00022465,2]
[381722469,1756319455581,-480.0,0.00022465,2]
[381722470,1756319455590,-579.54,0.00022465,2]
[381722471,1756319455600,-480.0,0.00022465,2]
[381722472,1756319455610,-1139.54,0.00022465,2]
[381722473,1756319455620,-480.0,0.00022465,2]
[381722474,1756319455630,-480.0,0.00022465,2]
[381722475,1756319455639,-480.0,0.00022465,2]
[381722476,1756319455649,-507.08521002,0.00022465,2]
[381722477,1756319455658,-480.0,0.00022465,2]
[381722478,1756319455668,-480.0,0.00022465,2]
[381722479,1756319455679,-480.0,0.00022465,2]
[381722480,1756319455694,-626.4,0.00022465,2]
[381722481,1756319455705,-660.36,0.00022465,2]
[381722482,1756319455715,-498.03,0.00022465,2]
[381722483,1756319455725,-480.0,0.00022465,2]
[381722484,1756319455735,-480.0,0.00022465,2]
[381722485,1756319455745,-480.0,0.00022465,2]
[381722486,1756319455755,-608.98,0.00022465,2]
[381722487,1756319455766,-608.98,0.00022465,2]
[381722488,1756319455776,-480.0,0.00022465,2]
[381722489,1756319455786,-480.0,0.00022465,2]
[381722490,1756319455796,-480.0,0.00022465,2]
[381722491,1756319455807,-480.0,0.00022465,2]
[381722492,1756319455817,-480.0,0.00022465,2]
[381722493,1756319455827,-480.0,0.00022465,2]
[381722494,1756319455837,-480.0,0.00022465,2]
[381722495,1756319455847,-480.0,0.00022465,2]
[381722496,1756319455857,-480.0,0.00022465,2]
[381722497,1756319455867,-537.37,0.00022465,2]
[381722498,1756319455877,-500.0,0.00022465,2]
[381722499,1756319455888,-480.0,0.00022465,2]
[381722500,1756319455898,-480.0,0.00022465,2]
[381722501,1756319455908,-480.0,0.00022465,2]
[381722502,1756319455918,-480.0,0.00022465,2]
[381722503,1756319455928,-480.0,0.00022465,2]
[381722504,1756319455938,-480.0,0.00022465,2]
[381722505,1756319455949,-500.0,0.00022465,2]
[381722506,1756319455959,-480.0,0.00022465,2]
[381722507,1756319455969,-480.0,0.00022465,2]
[381722508,1756319455978,-480.0,0.00022465,2]
[381722509,1756319455988,-512.89,0.00022465,2]
[381722510,1756319455998,-526.22,0.00022465,2]
[381722511,1756319456008,-480.0,0.00022465,2]
[381722512,1756319456018,-648.81,0.00022465,2]
[381722513,1756319456221,-480.0,0.00022465,2]
[381722514,1756319456261,-135.69231037,0.00022465,2]
[381722515,1756319538883,1341.0,0.0002011,2]
[381722516,1756319572825,741.54308819,0.000199,2]
[381722517,1756319752336,716.82498526,0.000199,2]
[381722518,1756319897619,3291.0,0.00027397,120]
[381722519,1756319926726,692.93081922,0.000199,2]
[381722520,1756319993503,3231.76,0.00027397,120]
[381722521,1756320102041,669.83312513,0.000199,2]
[381722522,1756320124630,4834.93575365,0.0001969,2]
[381722523,1756320124655,4116.31775785,0.0001969,2]
[381722525,1756320199024,195.27484,0.00013699,2]
[381722527,1756320271478,173.071345,0.00019863,2]
[381722528,1756320276631,647.50535436,0.000199,2]
[381722530,1756320450815,625.92184249,0.000199,2]
[381722553,1756320530716,164.57808423,0.00020087,2]
[381722554,1756320616672,419.05499368,0.00020087,2]
[381722555,1756320628265,605.05778118,0.000199,2]
[381722568,1756320632742,-1200.0,0.00020186,2]
[381722571,1756320632752,-4133.815725,0.00020187,2]
[381722574,1756320632764,-769.0,0.00020187,2]
[381722587,1756320632832,-15201.53494585,0.00020187,2]
[381722589,1756320632841,-195.27484,0.00020187,2]
[381722591,1756320632851,-220.0,0.00020591,2]
[381722594,1756320632862,-500.0,0.00020685,2]
[381722596,1756320632873,-192.92430581,0.00020685,2]
[381722598,1756320632882,-500.0,0.00020685,2]
[381722600,1756320632892,-27137.9670176,0.00020686,2]
[381722602,1756320632902,-500.0,0.00020686,2]
[381722604,1756320632912,-481.30405833,0.00020686,2]
[381722606,1756320632921,-1200.0,0.00020686,2]
[381722608,1756320632931,-1070.91,0.00020692,3]
[381722610,1756320632941,-535.45,0.00020692,3]
[381722612,1756320632950,-267.73,0.00020692,3]
[381722614,1756320632960,-803.21,0.00020692,3]
[381722616,1756320632970,-1531.02,0.00020692,10]
[381722618,1756320632980,-1275.85,0.00020692,10]
[381722620,1756320632989,-7299.46519104,0.00020702,2]
[381722672,1756320638606,-500.0,0.00020186,2]
[381722673,1756320638617,-638.73829405,0.00020186,2]
[381722674,1756320638627,-444.66311869,0.00020186,2]
[381722675,1756320638636,-294.37158669,0.00020186,2]
[381722676,1756320638646,-640.496275,0.00020186,2]
[381722677,1756320638656,-500.0,0.00020186,2]
[381722678,1756320638666,-500.0,0.00020186,2]
[381722679,1756320638679,-500.0,0.00020186,2]
[381722680,1756320638689,-500.0,0.00020186,2]
[381722681,1756320638699,-500.0,0.00020186,2]
[381722682,1756320638708,-397.8844724,0.00020186,2]
[381722683,1756320638719,-500.0,0.00020186,2]
[381722684,1756320638729,-500.0,0.00020186,2]
[381722685,1756320638740,-500.0,0.00020186,2]
[381722686,1756320638750,-500.0,0.00020186,2]
[381722687,1756320638759,-266.365354,0.00020186,2]
[381722688,1756320638769,-379.72102208,0.00020186,2]
[381722689,1756320638778,-500.0,0.00020186,2]
[381722690,1756320638788,-500.0,0.00020685,2]
[381722691,1756320638798,-500.0,0.00020685,2]
[381722692,1756320638807,-616.9337585,0.00020685,2]
[381722693,1756320638817,-500.0,0.00020685,2]
[381722694,1756320638826,-1063.21,0.00020692,10]
[381722695,1756320638836,-50133.15140188,0.00020702,2]
[381722696,1756320638848,-28545.9763185,0.00020702,2]
[381722697,1756320638870,-97924.453895,0.00020702,2]
[381722698,1756320638882,-186096.95319358,0.00020702,2]
[381722699,1756320638891,-463.40471222,0.00020769,2]
[381722700,1756320638900,-1853.61884887,0.00020769,2]
[381722701,1756320638910,-4166.47176754,0.00020769,2]
[381722702,1756320638919,-381.56904297,0.00020769,2]
[381722703,1756320638929,-1526.27617189,0.00020769,2]
[381722704,1756320638938,-3430.68726536,0.00020769,2]
[381722705,1756320638948,-400.64592079,0.00020773,2]
[381722706,1756320638957,-500.0,0.00020773,2]
[381722707,1756320638967,-500.0,0.00020773,2]
[381722708,1756320638976,-500.0,0.00020773,2]
[381722709,1756320638986,-500.0,0.00020773,2]
[381722710,1756320638996,-500.0,0.00020773,2]
[381722711,1756320639006,-500.0,0.00020773,2]
[381722712,1756320639015,-500.0,0.00020773,2]
[381722713,1756320639025,-500.0,0.00020773,2]
[381722714,1756320639035,-500.0,0.00020773,2]
[381722715,1756320639044,-500.0,0.00020773,2]
[381722716,1756320639058,-500.0,0.00020773,2]
[381722717,1756320639068,-500.0,0.00020773,2]
[381722718,1756320639077,-500.0,0.00020773,2]
[381722719,1756320639086,-500.0,0.00020773,2]
[381722720,1756320639095,-160.0,0.00020797,2]
[381722721,1756320639105,-500.0,0.00021047,2]
[381722722,1756320639115,-300.0,0.00021114,20]
[381722723,1756320639125,-300.0,0.00021114,20]
[381722724,1756320639136,-300.0,0.00021114,20]
[381722725,1756320639150,-300.0,0.00021114,20]
[381722726,1756320639162,-152.47729355,0.00021114,20]
[381722727,1756320639171,-151.0,0.00021114,20]
[381722728,1756320639181,-500.0,0.00021114,20]
[381722729,1756320639190,-195.18637789,0.00021114,20]
[381722730,1756320639200,-183.9151083,0.00021114,2]
[381722731,1756320639209,-151.0,0.00021114,20]
[381722732,1756320639219,-151.0,0.00021114,20]
[381722733,1756320639228,-152.81583965,0.00021114,20]
[381722734,1756320639238,-151.0,0.00021114,20]
[381722735,1756320639248,-500.0,0.00021114,20]
[381722736,1756320639258,-500.0,0.00021114,20]
[381722737,1756320639267,-199.32256392,0.00021114,20]
[381722738,1756320639277,-973.0,0.00021114,20]
[381722739,1756320639286,-151.0,0.00021114,20]
[381722740,1756320639296,-151.0,0.00021114,2]
[381722741,1756320639309,-1000.0,0.00021321,2]
[381722742,1756320639319,-1000.0,0.00021321,2]
[381722743,1756320639328,-1000.0,0.00021321,2]
[381722744,1756320639337,-500.0,0.00021321,2]
[381722745,1756320639347,-1000.0,0.00021321,2]
[381722746,1756320639356,-1000.0,0.00021321,2]
[381722747,1756320639366,-1000.0,0.00021321,2]
[381722748,1756320639375,-1000.0,0.00021321,2]
[381722749,1756320639385,-1000.0,0.00021321,2]
[381722750,1756320639394,-1000.0,0.00021321,2]
[381722751,1756320639404,-1000.0,0.00021321,2]
[381722752,1756320639414,-1000.0,0.00021321,2]
[381722753,1756320639425,-503.6153923,0.00021388,20]
[381722754,1756320639434,-151.94225115,0.00021388,20]
[381722755,1756320639444,-151.0,0.00021388,20]
[381722756,1756320639454,-226.9344424,0.00021388,20]
[381722757,1756320639463,-500.0,0.00021388,20]
[381722758,1756320639473,-500.0,0.00021388,20]
[381722759,1756320639482,-973.0,0.00021388,20]
[381722760,1756320639492,-212.56052203,0.00021388,20]
[381722761,1756320639502,-605.05778101,0.00021627,2]
[381722762,1756320639512,-151.0,0.00021662,20]
[381722763,1756320639522,-462.54880423,0.00021662,20]
[381722764,1756320639531,-409.19506388,0.00021662,20]
[381722765,1756320639541,-973.0,0.00021662,20]
[381722766,1756320639550,-1109.85782414,0.00021868,2]
[381722767,1756320639560,-1500.0,0.00021868,2]
[381722768,1756320639570,-1500.0,0.00021868,2]
[381722769,1756320639579,-13801.65141981,0.000219,2]
[381722836,1756320640720,-1377.32648704,0.000219,2]
[381722865,1756320643833,-43523.33431557,0.000219,2]
[381722874,1756320804360,564.72059588,0.000199,2]
[381722875,1756320983285,545.89657594,0.000199,2]
[381722879,1756321147846,175.747356,0.00013699,2]
[381722880,1756321163163,527.70002337,0.000199,2]
[381722881,1756321170817,1239.16345002,0.0002011,2]
[381722882,1756321170840,1826.83654998,0.0002011,2]
[381722886,1756321217152,173.071345,0.00019863,2]
[381722887,1756321339972,510.11002262,0.000199,2]
[381722888,1756321517514,493.10635518,0.000199,2]
[381722890,1756321599124,-264.4134469,0.00020169,2]
[381722891,1756321599146,-1.94795052,0.00020169,2]
[381722893,1756321631437,5301.07159035,0.00020087,2]
[381722894,1756321697646,476.66947679,0.000199,2]
[381722895,1756321710758,784.24392221,0.00020069,2]
[381722932,1756321835518,-305.4259777,0.00020168,2]
[381722933,1756321835528,-201.95075868,0.00020169,2]
[381722934,1756321835572,-1396.0,0.00020169,2]
[381722935,1756321835606,-1134.25703422,0.00020169,2]
[381722936,1756321835618,-254.15922863,0.00020169,2]
[381722937,1756321835628,-175.747356,0.00020187,2]
[381722938,1756321835638,-500.0,0.00020521,2]
[381722939,1756321835647,-181.85363095,0.00020521,2]
[381722940,1756321835656,-500.0,0.00020521,2]
[381722941,1756321835665,-500.0,0.00020521,2]
[381722942,1756321835674,-500.0,0.00020521,2]
[381722943,1756321835684,-300.0,0.00020521,2]
[381722944,1756321835694,-300.0,0.00020521,2]
[381722945,1756321835703,-300.0,0.00020521,2]
[381722946,1756321835712,-1200.0,0.00020521,2]
[381722947,1756321835722,-702.45645676,0.00020522,2]
[381722948,1756321835731,-2809.82582703,0.00020522,2]
[381722949,1756321835740,-6315.78600272,0.00020522,2]
[381722950,1756321835749,-398.47239681,0.00020573,2]
[381722951,1756321835758,-1200.0,0.00020588,2]
[381722952,1756321835768,-35483.35091932,0.00020589,2]
[381722993,1756321837829,-13500.30767502,0.00020589,2]
[381722995,1756321837839,-1102.57,0.00020592,3]
[381722997,1756321837847,-551.28,0.00020592,3]
[381722999,1756321837856,-275.64,0.00020592,3]
[381723001,1756321837866,-826.97,0.00020592,3]
[381723003,1756321837877,-615.28,0.00020592,10]
[381723005,1756321837888,-783.46,0.00020592,10]
[381723006,1756321837897,-652.89,0.00020592,10]
[381723009,1756321837907,-370000.0,0.00020602,2]
[381723010,1756321837917,-286.39146236,0.00020673,2]
[381723012,1756321837926,-500.0,0.00020673,2]
[381723014,1756321837935,-500.0,0.00020673,2]
[381723016,1756321837945,-1000.0,0.00020701,2]
[381723018,1756321837954,-1000.0,0.00020701,2]
[381723020,1756321837963,-306.86379328,0.00020701,2]
[381723022,1756321837973,-250.0,0.00020903,2]
[381723024,1756321837982,-398.47239678,0.00020953,2]
[381723026,1756321837992,-600.0,0.00021013,20]
[381723028,1756321838001,-500.0,0.00021221,2]
[381723030,1756321838010,-1000.0,0.00021221,2]
[381723032,1756321838020,-398.47239678,0.00021332,2]
[381723034,1756321838029,-2434.74389024,0.00021529,2]
[381723036,1756321838038,-151.0,0.00021529,2]
[381723038,1756321838047,-194.72792766,0.00021529,2]
[381723040,1756321838057,-151.0,0.00021529,2]
[381723042,1756321838066,-151.0,0.00021529,2]
[381723044,1756321838075,-151.0,0.00021529,2]
[381723046,1756321838084,-177.75684308,0.00021529,2]
[381723048,1756321838094,-151.0,0.00021529,2]
[381723050,1756321838103,-151.0,0.00021529,2]
[381723052,1756321838112,-151.0,0.00021529,2]
[381723054,1756321838121,-151.0,0.00021529,2]
[381723056,1756321838132,-151.0,0.00021529,2]
[381723058,1756321838142,-151.0,0.00021529,2]
[381723060,1756321838151,-151.0,0.00021529,2]
[381723062,1756321838160,-151.0,0.00021529,2]
[381723064,1756321838169,-151.0,0.00021529,2]
[381723066,1756321838179,-1000.0,0.00021529,2]
[381723068,1756321838188,-1000.0,0.00021529,2]
[381723069,1756321838197,-1000.0,0.00021529,2]
[381723071,1756321838206,-1000.0,0.00021529,2]
[381723073,1756321838215,-1000.0,0.00021529,2]
[381723075,1756321838224,-1000.0,0.00021529,2]
[381723078,1756321838236,-500.0,0.00021529,2]
[381723080,1756321838245,-2524.82941417,0.00021584,2]
[381723082,1756321838256,-1476.63965802,0.00021602,2]
[381723084,1756321838265,-476.6694765,0.00021627,2]
[381723086,1756321838275,-2618.2481025,0.00021639,2]
[381723088,1756321838284,-2715.12328229,0.00021694,2]
[381723090,1756321838293,-398.47239678,0.00021712,2]
[381723092,1756321838302,-44262.6162434,0.00021744,2]
[381723094,1756321838311,-2815.58284374,0.00021749,2]
[381723096,1756321838321,-1500.0,0.00021768,2]
[381723098,1756321838330,-2919.75940895,0.00021804,2]
[381723100,1756321838339,-493.14048275,0.00021859,2]
[381723101,1756321838348,-24936.83777758,0.000219,2]
[381723103,1756321838357,-1780.23862326,0.000219,2]
[381723105,1756321838367,-851.0,0.00021904,2]
[381723107,1756321838379,-3494.99,0.00021916,2]
[381723110,1756321838389,-4178.68835111,0.00021917,2]
[381723112,1756321838401,-480.0,0.00021917,2]
[381723114,1756321838411,-480.0,0.00021917,2]
[381723115,1756321838422,-480.0,0.00021917,2]
[381723117,1756321838431,-480.0,0.00021917,2]
[381723119,1756321838440,-480.0,0.00021917,2]
[381723120,1756321838450,-480.0,0.00021917,2]
[381723121,1756321838461,-480.0,0.00021917,2]
[381723122,1756321838470,-373.24998421,0.00021917,2]
[381723123,1756321838480,-480.0,0.00021917,2]
[381723124,1756321838491,-480.0,0.00021917,2]
[381723125,1756321838500,-480.0,0.00021917,2]
[381723126,1756321838510,-480.0,0.00021917,2]
[381723127,1756321838519,-480.0,0.00021917,2]
[381723128,1756321838528,-480.0,0.00021917,2]
[381723129,1756321838538,-518.61,0.00021917,2]
[381723130,1756321838548,-480.0,0.00021917,2]
[381723131,1756321838557,-480.0,0.00021917,2]
[381723132,1756321838566,-482.89680585,0.00021917,2]
[381723133,1756321838575,-480.0,0.00021917,2]
[381723134,1756321838586,-480.0,0.00021917,2]
[381723135,1756321838595,-195.24168607,0.00021917,2]
[381723136,1756321838605,-480.0,0.00021917,2]
[381723137,1756321838614,-480.0,0.00021917,2]
[381723138,1756321838623,-480.0,0.00021917,2]
[381723139,1756321838636,-480.0,0.00021917,2]
[381723140,1756321838646,-480.0,0.00021917,2]
[381723141,1756321838656,-480.0,0.00021917,2]
[381723142,1756321838666,-480.0,0.00021917,2]
[381723143,1756321838680,-480.0,0.00021917,2]
[381723145,1756321838695,-480.0,0.00021917,2]
[381723146,1756321838704,-480.0,0.00021917,2]
[381723147,1756321838714,-480.0,0.00021917,2]
[381723149,1756321838723,-480.0,0.00021917,2]